Cogmind - Beta 14 @@@ ROGUE MODE // 2024.08.08 @ 08:05:16 Player: weedlord420 Result: Destroyed by as-05104 with Assembled Maul Performance ------------- Evolutions (0) 0 Regions Visited (3) 600 Robots Destroyed (22) 110 Value Destroyed (567) 567 Prototype IDs (24) 480 Alien Tech Used (0) 0 Bonus (300) 300 TOTAL SCORE: 2057 Bonus ------- Aligned with FarCom 300 Cogmind --------- Core Integrity 0/250 Matter 270/300 Energy 275/275 System Corruption 5% Temperature Cool (0) Movement Treading (160) Location -10/Exiles Parts ------- > --- POWER (1) -------- Deuterium Engine > --- PROPULSION (2) --- Light Treads > --- UTILITY (2) ------ Small Storage Unit > --- WEAPON (2) ------- Improved Assault Rifle Improved Assault Rifle > --- INVENTORY (8) ---- Ion Engine Light Treads Machine Analyzer Improved Light Armor Plating Skeleton Box Improved Assault Rifle Rocket Launcher Makeshift Hammer Peak State ------------ > --- POWER ------------ Deuterium Engine > --- PROPULSION ------- Light Treads Light Treads > --- UTILITY ---------- Improved Heat Sink Small Storage Unit > --- WEAPON ----------- Improved Assault Rifle Improved Assault Rifle > --- INVENTORY -------- Ion Engine Light Treads Machine Analyzer Improved Light Armor Plating Skeleton Box Improved Assault Rifle Rocket Launcher Makeshift Hammer [Rating: 17] Favorites ----------- Power Deuterium Engine Engine Deuterium Engine Propulsion Light Treads Treads Light Treads Utility Small Storage Unit Device Improved Heat Sink Storage Small Storage Unit Weapon Improved Assault Rifle Energy Gun Particle Gun Ballistic Gun Improved Assault Rifle Build | -11 -10 -10 -10 ------- Run | Yrd Mat Min Exi Slots Evolved . | . . . . Power . | . . . . Propulsion . | . . . . Utility . | . . . . Weapon . | . . . . Parts Attached 19 | 6 11 1 1 Power 5 | 1 3 1 . Engine 5 | 1 3 1 . Core . | . . . . Reactor . | . . . . Propulsion 5 | 2 2 . 1 Treads 5 | 2 2 . 1 Leg . | . . . . Wheel . | . . . . Hover . | . . . . Flight . | . . . . Utility 3 | 1 2 . . Device 2 | . 2 . . Storage 1 | 1 . . . Processor . | . . . . Hackware . | . . . . Protection . | . . . . Artifact . | . . . . Weapon 6 | 2 4 . . Energy Gun 1 | . 1 . . Energy Cannon . | . . . . Ballistic Gun 5 | 2 3 . . Ballistic Cannon . | . . . . Launcher . | . . . . Special Weapon . | . . . . Impact Weapon . | . . . . Slashing Weapon . | . . . . Piercing Weapon . | . . . . Special Melee Weapon . | . . . . Unidentified Prototypes 1 | . 1 . . Parts Lost 6 | . 4 . 2 Power 2 | . 2 . . Propulsion 2 | . 1 . 1 Utility 1 | . . . 1 Weapon 1 | . 1 . . Highest Loss Streak 3 | . 3 . 2 To Critical Strikes . | . . . . Average Slot Usage (%) 98 | . 96 100 99 Engine 13 | . 12 14 14 Treads 27 | . 27 28 27 Device 13 | . 12 14 13 Storage 14 | . 14 14 14 Ballistic Gun 27 | . 26 28 28 Peak Build Rating 17 | 6 14 16 17 Average Rating 13 | 3 10 15 16 On Entrance 9 | . 6 14 16 Naked Turns . | . . . . Heaviest Build 21 | 13 17 21 21 Greatest Support 40 | 40 40 40 40 Greatest Overweight (x) . | . . . . Average Overweight (x) . | . . . . Largest Inventory Capacity 8 | 8 8 8 8 Average Capacity 7 | 6 8 8 8 Most Carried 8 | 5 8 8 8 Average Carried 7 | 1 6 7 7 Final Capacity 8 | 8 8 8 8 Final Carried 8 | 1 8 8 8 Class Distribution -------------------- 100% | Mutant Dominant Class ---------------- Mutant | -10/Materials Mutant | -10/Mines Mutant | -10/Exiles Resources | -11 -10 -10 -10 ----------- Run | Yrd Mat Min Exi Matter Collected 698 | 257 401 40 . Remotely . | . . . . Salvage Created 772 | . 680 92 . Parts 49 | . 46 3 . Haulers Intercepted 2 | . 2 . . Recyclers Shooed 1 | . 1 . . Parts Field Recycled . | . . . . Retrieved Matter . | . . . . Parts Self-Destructed . | . . . . Prevented . | . . . . Kills | -11 -10 -10 -10 ------- Run | Yrd Mat Min Exi Combat Hostiles Destroyed 16 | . 14 2 . Guns 16 | . 14 2 . Classes Destroyed 6 | . 6 . . Builder 2 | . 2 . . Hauler 2 | . 2 . . Mechanic 1 | . 1 . . Watcher 1 | . 1 . . Swarmer 3 | . 3 . . Grunt 13 | . 11 2 . Best Kill Streak 4 | . 4 2 . Combat Bots Only 4 | . 4 2 . Max Kills in Single Turn 2 | . 2 1 . Gunslinging 1 | . 1 . . Exploded . | . . . . Melee . | . . . . Uniques/NPCs Destroyed . | . . . . Combat | -11 -10 -10 -10 -------- Run | Yrd Mat Min Exi Hostile Shots Fired 135 | . 96 7 32 Missed 28 | . 15 1 12 Damage Taken 1398 | . 913 73 412 Core 277 | . 137 13 127 Absorbed by Shields . | . . . . Core Remaining (%) 100 | 100 . . . Volleys Fired 76 | . 71 5 . Largest 2 | . 2 2 . Hottest 85 | . 85 46 . Shots Fired 154 | . 142 11 1 Gun 154 | . 142 11 1 Cannon . | . . . . Launcher . | . . . . Special . | . . . . Kinetic 146 | . 134 11 1 Thermal 8 | . 8 . . Explosive . | . . . . Electromagnetic . | . . . . Robot Hit Streak 17 | . 17 5 6 Robot Miss Streak 3 | . 3 1 . Penetration Max . | . . . . Secondary Targets 4 | . 4 . . Max Gunslinging Chain 1 | . 1 . . Shots Hit Robots 106 | . 97 8 1 Core Hits 41 | . 37 3 1 Critical Kills 1 | . 1 . . Critical Parts Destroyed . | . . . . Critical Strikes 1 | . 1 . . Destroy 1 | . 1 . . Melee Attacks . | . . . . Impact . | . . . . Slashing . | . . . . Piercing . | . . . . Sneak Attacks . | . . . . Combat Hostiles . | . . . . Follow-up Attacks . | . . . . Damage Inflicted 1335 | . 1197 122 16 Guns 1326 | . 1188 122 16 Cannons . | . . . . Explosions . | . . . . Melee . | . . . . Ramming 9 | . 9 . . Kinetic 1231 | . 1093 122 16 Thermal 95 | . 95 . . Explosive . | . . . . Electromagnetic . | . . . . Impact . | . . . . Slashing . | . . . . Piercing . | . . . . Highest Corruption 5 | . 1 1 5 Average Corruption 1 | . 1 1 1 Corruption Purged . | . . . . Corruption Blocked . | . . . . Effects 12 | . 3 5 4 Message Errors 2 | . . 1 1 Matter Fused 5 | . 2 1 2 Heat Flow Errors 1 | . 1 . . Data Loss (minor) 1 | . . 1 . Misfires 2 | . . 1 1 Alerts 1 | . . 1 . Overload Shots . | . . . . Overflow Damage . | . . . . Projectiles . | . . . . Explosions . | . . . . Melee . | . . . . Knockbacks 1 | . 1 . . Impact 1 | . 1 . . Kinetic . | . . . . Secondary . | . . . . Self-Inflicted Damage . | . . . . Shots . | . . . . Rammed 1 | . 1 . . Targets Rammed 1 | . 1 . . Kicked . | . . . . Crushed . | . . . . Highest Temperature 395 | . 395 . . Average Temperature 69 | . 69 . . Received Heat Transfer 474 | . 429 45 . Effects 1 | . 1 . . Shutdowns 1 | . 1 . . Siege Activations . | . . . . Robots Corrupted . | . . . . Combat Hostiles . | . . . . Parts Fried . | . . . . Impact Corruptions . | . . . . Robots Melted . | . . . . Combat Hostiles . | . . . . Parts Melted . | . . . . Heat Transferred 222 | . 222 . . Parts Sabotaged . | . . . . Parts Stolen . | . . . . Parts Stripped . | . . . . Power Chain Reactions . | . . . . Alert | -11 -10 -10 -10 ------- Run | Yrd Mat Min Exi Peak Influence 257 | . 257 61 . Initial 11 | . . 11 . Average 62 | . 99 15 . Maximum Alert Level 1 | . 1 . . Low Security (%) 98 | 100 96 100 . Level 1 1 | . 3 . . Level 2 . | . . . . Level 3 . | . . . . Level 4 . | . . . . Level 5 . | . . . . High Security . | . . . . Max Security . | . . . . Squads Dispatched 3 | . 2 1 . Investigation 3 | . 2 1 . Extermination . | . . . . Reinforcement . | . . . . Assault . | . . . . Garrison . | . . . . Intercept . | . . . . Searches Triggered . | . . . . Construction Impeded . | . . . . Haulers Reinforced . | . . . . Active Scanning Responses . | . . . . Cargo Convoy Interrupts . | . . . . Stealth | -11 -10 -10 -10 --------- Run | Yrd Mat Min Exi Distress Signals 3 | . 3 . . Communications Jammed . | . . . . Distress Signals . | . . . . Times Spotted 44 | . 34 2 8 Peak Tracking Total 11 | . 5 2 11 Tactical Retreats 2 | . 1 . 1 Traps | -11 -10 -10 -10 ------- Run | Yrd Mat Min Exi Traps Triggered 1 | . 1 . . Indirectly . | . . . . Trap Hack Attempts . | . . . . Triggered . | . . . . Disarmed . | . . . . Reprogrammed . | . . . . Reused . | . . . . Traps Extracted . | . . . . Installed . | . . . . Triggered . | . . . . Machines | -11 -10 -10 -10 ---------- Run | Yrd Mat Min Exi Machines Disabled . | . . . . Max in Single Turn . | . . . . Machines Repaired . | . . . . Machines Dismantled . | . . . . Machines Sabotaged . | . . . . Overloaded Fab Kills . | . . . . Hacking | -11 -10 -10 -10 --------- Run | Yrd Mat Min Exi Machines Accessed 7 | . 4 1 2 Terminals 4 | . 4 . . Fabricators . | . . . . Repair Stations . | . . . . Recycling Units . | . . . . Scanalyzers . | . . . . Garrison Access . | . . . . Total Hacks 37 | . 12 1 24 Successful 30 | . 5 1 24 Failed 7 | . 7 . . Catastrophic 1 | . 1 . . Database Lockouts . | . . . . Manual 10 | . 9 . 1 Terminals 12 | . 12 . . Fabricators . | . . . . Repair Stations . | . . . . Recycling Units . | . . . . Scanalyzers . | . . . . Garrison Access . | . . . . Terminal Hacks 27 | . 2 1 24 Record 23 | . . . 23 Open Door 1 | . . 1 . Locate Traps 1 | . 1 . . Zone Layout 1 | . 1 . . Derelict Proto ID Bank 1 | . . . 1 Fabricator Hacks . | . . . . Repair Station Hacks . | . . . . Recycling Unit Hacks . | . . . . Scanalyzer . | . . . . Garrison Access Hacks . | . . . . Unauthorized Hacks 3 | . 3 . . Terminals 3 | . 3 . . Assimilate 1 | . 1 . . Operators 1 | . 1 . . Sabotage 1 | . 1 . . Fabricators . | . . . . Repair Stations . | . . . . Recycling Units . | . . . . Scanalyzers . | . . . . Garrison Access . | . . . . Data Cores Recovered . | . . . . Used . | . . . . Hacking Detections 3 | . 3 . . Full Trace Events 1 | . 1 . . Feedback Events . | . . . . Feedback Blocked . | . . . . Robot Schematics Acquired . | . . . . Robots Built . | . . . . Authchips . | . . . . Time . | . . . . Total Robot Build Rating . | . . . . Part Schematics Acquired . | . . . . Parts Built . | . . . . Authchips . | . . . . Time . | . . . . Total Part Build Rating . | . . . . Parts Repaired . | . . . . Time . | . . . . Parts Recycled . | . . . . Recycled Matter . | . . . . Retrieved Matter . | . . . . Retrieved Components . | . . . . Parts Scanalyzed . | . . . . Part Schematics Acquired . | . . . . Parts Damaged . | . . . . Bothacking | -11 -10 -10 -10 ------------ Run | Yrd Mat Min Exi Used RIF Installer . | . . . . Robots Hacked . | . . . . Non-combat . | . . . . Combat . | . . . . Robot Hacks Applied . | . . . . Relay Couplers Released . | . . . . Fabnet Peak Effective % . | . . . . Robots Rewired . | . . . . Allies Hacked . | . . . . Hacks Repelled . | . . . . Allies | -11 -10 -10 -10 -------- Run | Yrd Mat Min Exi Total Allies 2 | . 1 1 . Largest Group 2 | . 1 2 1 Highest-Rated Group 41 | . 10 41 10 Highest-Rated Ally 31 | . 10 31 10 Total Orders . | . . . . Ally Attacks . | . . . . Total Damage . | . . . . Kills . | . . . . Allies Corrupted . | . . . . Allies Melted . | . . . . Intel | -11 -10 -10 -10 ------- Run | Yrd Mat Min Exi Robot Analysis Total . | . . . . Derelict Logs Recovered 3 | . . 3 . Drone Launches . | . . . . Drone Recoveries . | . . . . Exploration | -11 -10 -10 -10 ------------- Run | Yrd Mat Min Exi Turns Passed 2639 | 52 1290 937 360 Spaces Moved 1449 | 40 634 552 223 Core 21 | 21 . . . Treads 1428 | 19 634 552 223 Legs . | . . . . Wheels . | . . . . Hover . | . . . . Flight . | . . . . Fastest Speed 50 | 50 160 160 160 Average Speed 158 | 102 160 160 160 Slowest Speed 160 | 160 160 160 160 Overloaded Moves . | . . . . Propulsion Burnouts . | . . . . Robots Hopped . | . . . . Cave-ins Triggered . | . . . . Exploration Rate (%) 63 | 4 95 94 61 Regions Visited 3 Branch Regions 2 Pre-discovered Areas 1 | . . . 1 Known Exits Taken 1 | . . 1 . Unknown Exits Taken 2 | 1 1 . . Scrap Searched 2 | . . 2 . Spaces Dug . | . . . . Terrain Destroyed . | . . . . Melee . | . . . . Projectile . | . . . . AOE . | . . . . Terrain Rammed . | . . . . Walls Destroyed . | . . . . Machines Disabled . | . . . . Actions | -11 -10 -10 -10 --------- Run | Yrd Mat Min Exi Total 1657 | 51 782 598 226 Wait 72 | . 38 34 . Move 1446 | 39 633 551 223 Hop . | . . . . Pick Up 27 | 6 17 3 1 Fast Attach 4 | 1 3 . . Attach 10 | 5 5 . . Detach . | . . . . Swap 5 | . 3 1 1 Drop 16 | . 11 4 1 Fire 76 | . 71 5 . Melee . | . . . . Ram . | . . . . Kick . | . . . . Crush 1 | . 1 . . Escape Stasis . | . . . . Rewire . | . . . . Trap . | . . . . Miscellaneous . | . . . . Route ------- -11/Scrapyard -10/Materials (discovered 4 exits: [*Mat x2] / *Min x2) -10/Mines (discovered 3 exits: [*Mat x2] / *Exi) -10/Exiles History --------- Turn | Location | Event 5 | -11/Scrapyard | Discovered new exit (range 15) 53 | -11/Scrapyard | Entered Materials 249 | -10/Materials | Discovered new exit (range 13) 304 | -10/Materials | Build established: Mutant 425 | -10/Materials | Lost 3 parts (2p1n) 471 | -10/Materials | Core integrity fell below 50% 524 | -10/Materials | Discovered new exit (range 16) 951 | -10/Materials | Discovered new exit (range 6) 1058 | -10/Materials | Discovered new exit (range 9) 1343 | -10/Materials | Entered Mines 1343 | -10/Mines | Accompanied by 1 ally 1357 | -10/Mines | Met a Derelict bent on vengeance 1359 | -10/Mines | Learned Materials emergency access door positions 1362 | -10/Mines | Met a Derelict shopkeep closing up shop 1473 | -10/Mines | Discovered new exit (range 6) 1597 | -10/Mines | A weapon hastily lodged in a ceiling crevice suddenly fell to the ground 1641 | -10/Mines | Received a Mining Laser from a helpful Derelict 1680 | -10/Mines | Discovered new exit (range 14) 1824 | -10/Mines | Learned Materials stockpile data 1848 | -10/Mines | Identified exit to Exiles 2255 | -10/Mines | Deemed a non-threat by the Exiles lab entrance 2280 | -10/Mines | Entered Exiles 2280 | -10/Exiles | Accompanied by 1 ally 2319 | -10/Exiles | Met 8R-AWN 2348 | -10/Exiles | Met EX-HEX 2394 | -10/Exiles | Met EX-BIN 2413 | -10/Exiles | Aligned with FarCom system 2415 | -10/Exiles | Given EX-Vault access code 2453 | -10/Exiles | Opened EX-Vault 2462 | -10/Exiles | Found Skeleton Box 2493 | -10/Exiles | Warned to stay clear of 0b10 Research branches 2541 | -10/Exiles | Met EX-DEC 2570 | -10/Exiles | Learned location of Zion (-7) 2607 | -10/Exiles | Attacked by the Exiles 2611 | -10/Exiles | Core integrity fell below 20% 2640 | -10/Exiles | Destroyed by as-05104 with Assembled Maul Last Messages --------------- --AM-PHS >>Record "MSG004964-01" Who left my Assembled plushie in the Analyzer again?! I'm not erasing this message until I get an answer. --BIN 02607_ System corrupted: FCS attempts to trigger Imp. Assault Rifle. 02607_ System corrupted: Imp. Assault Rifle misfires. 02607_ EXILES: Hostile robot within lab perimeter. Defensive protocols time, folks! 02609_ EX-DEC: "Let's see what this bad boy can do..." 02609_ EX-DEC deploys DAS Turret. 02619_ EX-BIN: "I just want to science!" 02623_ Technician 1a destroyed. 02635_ Imp. Heat Sink destroyed. 02635_ System corrupted by crushing effect (+3). 02635_ Machine disabled. 02637_ Lgt. Treads destroyed. Map ----- +----------------------------------------------------+ | ?????????????????????????????????????????????????? | | ?????????????????????????????????????????????????? | | ?????????????????????????????????????????????????? | | ?????????????????????????????????????????????????? | | ?????????????????????????????????????????????????? | | ?????????????????????????????????????????????????? | | ?????????????????????????????????????????????????? | | ?????????????????????????????????????????????????? | | ?????????????????????????????????????????????????? | | ?????????????????????????????????????????????????? | | ?????????????????????????????????????????????????? | | ?????????????????????????????????????????????????? | | ?????????????????????????????????????????????????? | | ?????????????????????????######??????????????????? | | ?????????????????????????#!!! "??????????????????? | | ?????????????? #""???????# "??????????????????? | | ????????????? ??????# "??????????????????? | | ????????????? #????## ""#??????????######## | | ???????????? ##??#" ""???????????# """# | | ???????????? ##" "????????????#"" """# | | ????????????? #"" #????????????#"" # | | ??????????????? #????????????#"" # | | ?????????????????# ##???????????#"" "# | | ??????????????????## "#???????????# ""# | | ?????????????????##" ###?????????#"" ""# | | ????????????????"""" @a a ##????????### ### | | ????????????! "###"" ######???### ### | | ???????????#! ??????## a """#####X# #"# | | ????????????? ???????????#" "" | | ??????????????????????????#"# a "" | | ??????????????????????????#### a " | | ?????????????????????????????### | | ???????????????????????????????### | | ?????????????????????????????????## | | ??????????????????????????????????## | | ???????????????????????????????????##" | | ????????????????????????????????????#""" | | ???????????????????????????????????##" % % | | ???????????????????????????????????#"" | | ???????????????????????????????????#""" | | ??????????????????????????????????#""" " | | ??????????????????????????????????#""" | | ??????????????????????????????????#"" | | ??????????????????????????????????#""" | | ??????????????????????????????????#"" | | ??????????????????????????????????##"" | | ???????????????????????????????????#"""" | | ???????????????????????????????????## | | ????????????????????????????????????#" | | ????????????????????????????????????#"""" | +----------------------------------------------------+ Best States ------------- Heat Dissipation 39 Energy Generation 14 Energy Capacity 275 Matter Stores 300 Matter Capacity 300 Sight Range 16 Terrain Scan Density 10 Evasion (%) 50 Recoil Reduction 2 Item Schematics ----------------- None Robot Schematics ------------------ None Fabricated ------------ Nothing Alien Tech Used ----------------- None Achievements -------------- None Challenges ------------ None Game ------ Seed HugeRelayAutogun Manual? 0 Play Time 00:15:20 Cumulative 66.6 hours Start 2024.08.08 @ 07:50:11 End 2024.08.08 @ 08:05:16 Sessions 1 Manual Loads 0 Difficulty Rogue Special Mode None Game No. 117 Rogue 116 Adventurer 1 Explorer 0 Win Type - Total 0 Types 0/0/0/0/0/0/0/0/0 Lore% 38 Gallery% 45 Achievement% 39 Wizard Run 0 Options --------- Layout 1 ASCII 0 Keyboard 0 Movement Mouse Keybinds 0 Fullscreen 1 Font 48/Smallcaps Map View 50x35 Zoom Use 0% Tactical HUD 1 Map Filters NONE Filters NONE Steam 1 RUN: 77604375-88f9-47bc-8d03-2a45b25f3830